Body Name,Body,Service Division,Expense Type,Date Paid,Transaction Ref,Invoice Amount,Supplier Name
South Holland District Council,http://statistics.data.gov.uk/id/local-authority/32UF,AD Housing,Bed and Breakfast Accommodation (Homelessness Service),26/07/2022,30018369,500.00 ,Riverside Hotel
South Holland District Council,http://statistics.data.gov.uk/id/local-authority/32UF,AD Housing,Other Miscellaneous Expenses,07/07/2022,30017796,"32,996.29 ",Broadgate Builders (Spalding) Ltd
South Holland District Council,http://statistics.data.gov.uk/id/local-authority/32UF,AD Housing,Other Miscellaneous Expenses,07/07/2022,30017797,"18,742.36 ",Broadgate Builders (Spalding) Ltd
South Holland District Council,http://statistics.data.gov.uk/id/local-authority/32UF,AD Housing,Other Miscellaneous Expenses,07/07/2022,30017798,"10,507.02 ",Broadgate Homes Ltd
South Holland District Council,http://statistics.data.gov.uk/id/local-authority/32UF,AD Housing,Other Miscellaneous Expenses,07/07/2022,30017799,"11,208.78 ",Broadgate Homes Ltd
South Holland District Council,http://statistics.data.gov.uk/id/local-authority/32UF,AD Housing,Other Miscellaneous Expenses,19/07/2022,30017961,"14,111.40 ",Broadgate Homes Ltd
South Holland District Council,http://statistics.data.gov.uk/id/local-authority/32UF,AD Housing,Professional and Contractors Fees,26/07/2022,30018465,250.00 ,Rowan Fire Ltd
South Holland District Council,http://statistics.data.gov.uk/id/local-authority/32UF,AD Housing HRA,Asbestos Works HRA,28/07/2022,30017793,"4,000.00 ",Rilmac Insulation Ltd
South Holland District Council,http://statistics.data.gov.uk/id/local-authority/32UF,AD Housing HRA,Bed and Breakfast Accommodation (Homelessness Service),28/07/2022,30017086,554.17 ,The Mansion House Hotel
South Holland District Council,http://statistics.data.gov.uk/id/local-authority/32UF,AD Housing HRA,Buildings Maintenance - Programmed,26/07/2022,30018152,"4,000.00 ",AB Property T/A AB Electrical UK Limited
South Holland District Council,http://statistics.data.gov.uk/id/local-authority/32UF,AD Housing HRA,Buildings Maintenance - Responsive,07/07/2022,30017635,"1,007.00 ",Stuart Taplin Plumbing and Build Maint
South Holland District Council,http://statistics.data.gov.uk/id/local-authority/32UF,AD Housing HRA,Buildings Maintenance - Responsive,05/07/2022,30017637,949.58 ,Stuart Taplin Plumbing and Build Maint
South Holland District Council,http://statistics.data.gov.uk/id/local-authority/32UF,AD Housing HRA,Buildings Maintenance - Responsive,14/07/2022,30017802,"3,797.00 ",M and R Glass and Glazing Ltd
South Holland District Council,http://statistics.data.gov.uk/id/local-authority/32UF,AD Housing HRA,Buildings Maintenance - Responsive,19/07/2022,30017992,909.86 ,Healthguard Limited
South Holland District Council,http://statistics.data.gov.uk/id/local-authority/32UF,AD Housing HRA,Buildings Maintenance - Responsive,19/07/2022,30018020,"1,850.00 ",L Fragale
South Holland District Council,http://statistics.data.gov.uk/id/local-authority/32UF,AD Housing HRA,Buildings Maintenance - Responsive,14/07/2022,30018068,660.00 ,Barry Disdels Landscapes and Maintenance
South Holland District Council,http://statistics.data.gov.uk/id/local-authority/32UF,AD Housing HRA,Buildings Maintenance - Responsive,19/07/2022,30018155,"4,326.21 ",C G Godfrey Ltd
South Holland District Council,http://statistics.data.gov.uk/id/local-authority/32UF,AD Housing HRA,Buildings Maintenance - Responsive,26/07/2022,30018159,"10,002.05 ",C G Godfrey Ltd
South Holland District Council,http://statistics.data.gov.uk/id/local-authority/32UF,AD Housing HRA,Buildings Maintenance - Responsive,26/07/2022,30018165,"4,051.00 ",M and R Glass and Glazing Ltd
South Holland District Council,http://statistics.data.gov.uk/id/local-authority/32UF,AD Housing HRA,Buildings Maintenance - Responsive,19/07/2022,30018173,"1,577.39 ",C G Godfrey Ltd
South Holland District Council,http://statistics.data.gov.uk/id/local-authority/32UF,AD Housing HRA,Buildings Maintenance - Responsive,26/07/2022,30018226,850.00 ,Greenscape Tree Safe Ltd
South Holland District Council,http://statistics.data.gov.uk/id/local-authority/32UF,AD Housing HRA,Buildings Maintenance - Responsive,02/08/2022,30018461,"1,721.67 ",GBSG Ltd
South Holland District Council,http://statistics.data.gov.uk/id/local-authority/32UF,AD Housing HRA,Buildings Maintenance - Responsive,26/07/2022,30018515,900.00 ,Healthguard Limited
South Holland District Council,http://statistics.data.gov.uk/id/local-authority/32UF,AD Housing HRA,Buildings Maintenance - Responsive,04/08/2022,30018634,735.00 ,L Fragale
South Holland District Council,http://statistics.data.gov.uk/id/local-authority/32UF,AD Housing HRA,Cleaning Contract,26/07/2022,30017746,445.00 ,aAFD services Ltd
South Holland District Council,http://statistics.data.gov.uk/id/local-authority/32UF,AD Housing HRA,Cleaning Contract,12/07/2022,30017794,465.00 ,aAFD services Ltd
South Holland District Council,http://statistics.data.gov.uk/id/local-authority/32UF,AD Housing HRA,Computer Software Licence Costs,01/08/2022,30018562,864.00 ,Teletrac Navman (UK) Ltd
South Holland District Council,http://statistics.data.gov.uk/id/local-authority/32UF,AD Housing HRA,Computer Software Licence Costs,01/08/2022,30018564,432.00 ,Teletrac Navman (UK) Ltd
South Holland District Council,http://statistics.data.gov.uk/id/local-authority/32UF,AD Housing HRA,Damp Proofing,12/07/2022,30017161,"1,960.00 ",British Waterproofing
South Holland District Council,http://statistics.data.gov.uk/id/local-authority/32UF,AD Housing HRA,Drain Repairs,04/08/2022,30018074,"6,170.00 ",Dalrod Drainage Solutions
South Holland District Council,http://statistics.data.gov.uk/id/local-authority/32UF,AD Housing HRA,Drain Repairs,04/08/2022,30018075,"1,650.00 ",Dalrod Drainage Solutions
South Holland District Council,http://statistics.data.gov.uk/id/local-authority/32UF,AD Housing HRA,Drain Repairs,04/08/2022,30018076,"4,464.00 ",Dalrod Drainage Solutions
South Holland District Council,http://statistics.data.gov.uk/id/local-authority/32UF,AD Housing HRA,Fuel and Oil,05/07/2022,30017655,904.56 ,C H Jones Ltd
South Holland District Council,http://statistics.data.gov.uk/id/local-authority/32UF,AD Housing HRA,Fuel and Oil,12/07/2022,30017836,"1,081.96 ",C H Jones Ltd
South Holland District Council,http://statistics.data.gov.uk/id/local-authority/32UF,AD Housing HRA,Fuel and Oil,21/07/2022,30018423,"1,016.93 ",C H Jones Ltd
South Holland District Council,http://statistics.data.gov.uk/id/local-authority/32UF,AD Housing HRA,Fuel and Oil,26/07/2022,30018506,"1,013.29 ",C H Jones Ltd
South Holland District Council,http://statistics.data.gov.uk/id/local-authority/32UF,AD Housing HRA,Fuel and Oil,28/07/2022,30018679,861.88 ,C H Jones Ltd
South Holland District Council,http://statistics.data.gov.uk/id/local-authority/32UF,AD Housing HRA,Furniture and Equipment,26/07/2022,30017837,737.18 ,Veolia Es UK Ltd
South Holland District Council,http://statistics.data.gov.uk/id/local-authority/32UF,AD Housing HRA,Furniture and Equipment,21/07/2022,30017915,594.20 ,Veolia Es UK Ltd
South Holland District Council,http://statistics.data.gov.uk/id/local-authority/32UF,AD Housing HRA,Furniture and Equipment,28/07/2022,30018567,467.55 ,Veolia Es UK Ltd
South Holland District Council,http://statistics.data.gov.uk/id/local-authority/32UF,AD Housing HRA,Gas Repairs,04/08/2022,30018168,"14,258.39 ",Aaron Services Ltd
South Holland District Council,http://statistics.data.gov.uk/id/local-authority/32UF,AD Housing HRA,Gas Servicing,02/08/2022,30017772,"52,552.48 ",Aaron Services Ltd
South Holland District Council,http://statistics.data.gov.uk/id/local-authority/32UF,AD Housing HRA,Gas Servicing,04/08/2022,30018145,"1,893.65 ",Aaron Services Ltd
South Holland District Council,http://statistics.data.gov.uk/id/local-authority/32UF,AD Housing HRA,Grants and Contributions to Outside Bodies - No Service Received,21/07/2022,30017463,"16,560.00 ",Public Sector Partnership Services Ltd
South Holland District Council,http://statistics.data.gov.uk/id/local-authority/32UF,AD Housing HRA,Grounds Maintenance Contract (External),19/07/2022,30018081,"1,450.00 ",Greenscape Tree Safe Ltd
South Holland District Council,http://statistics.data.gov.uk/id/local-authority/32UF,AD Housing HRA,Legal Fees,28/07/2022,30017717,490.00 ,Capsticks Solicitors LLP
South Holland District Council,http://statistics.data.gov.uk/id/local-authority/32UF,AD Housing HRA,Legal Fees,28/07/2022,30018371,567.00 ,Capsticks Solicitors LLP
South Holland District Council,http://statistics.data.gov.uk/id/local-authority/32UF,AD Housing HRA,Maintenance of Footpaths and Roadways,26/07/2022,30018148,"2,238.15 ",C G Godfrey Ltd
South Holland District Council,http://statistics.data.gov.uk/id/local-authority/32UF,AD Housing HRA,Materials and Consumables,07/07/2022,30017457,475.95 ,Brian Ayres Roofing Supplies Ltd
South Holland District Council,http://statistics.data.gov.uk/id/local-authority/32UF,AD Housing HRA,Materials and Consumables,05/07/2022,30017663,"3,164.21 ",Gibbs and Dandy
South Holland District Council,http://statistics.data.gov.uk/id/local-authority/32UF,AD Housing HRA,Materials and Consumables,05/07/2022,30017664,"3,316.67 ",Gibbs and Dandy
South Holland District Council,http://statistics.data.gov.uk/id/local-authority/32UF,AD Housing HRA,Materials and Consumables,05/07/2022,30017672,"2,077.08 ",Gibbs and Dandy
South Holland District Council,http://statistics.data.gov.uk/id/local-authority/32UF,AD Housing HRA,Materials and Consumables,05/07/2022,30017673,"4,367.51 ",Gibbs and Dandy
South Holland District Council,http://statistics.data.gov.uk/id/local-authority/32UF,AD Housing HRA,Materials and Consumables,14/07/2022,30017715,708.35 ,Brian Ayres Roofing Supplies Ltd
South Holland District Council,http://statistics.data.gov.uk/id/local-authority/32UF,AD Housing HRA,Materials and Consumables,12/07/2022,30017834,"2,697.01 ",Gibbs and Dandy
South Holland District Council,http://statistics.data.gov.uk/id/local-authority/32UF,AD Housing HRA,Materials and Consumables,21/07/2022,30018009,741.75 ,EPH Supplies Wholesale Ltd
South Holland District Council,http://statistics.data.gov.uk/id/local-authority/32UF,AD Housing HRA,Materials and Consumables,19/07/2022,30018025,733.09 ,Kirby and Wells Ltd T A Kawstore
South Holland District Council,http://statistics.data.gov.uk/id/local-authority/32UF,AD Housing HRA,Materials and Consumables,21/07/2022,30018181,444.52 ,EPH Supplies Wholesale Ltd
South Holland District Council,http://statistics.data.gov.uk/id/local-authority/32UF,AD Housing HRA,Materials and Consumables,26/07/2022,30018375,"4,697.47 ",Gibbs and Dandy
South Holland District Council,http://statistics.data.gov.uk/id/local-authority/32UF,AD Housing HRA,Materials and Consumables,26/07/2022,30018382,"4,339.94 ",Gibbs and Dandy
South Holland District Council,http://statistics.data.gov.uk/id/local-authority/32UF,AD Housing HRA,Professional and Contractors Fees,12/07/2022,30017017,948.00 ,Morgan Lambert Ltd 2018
South Holland District Council,http://statistics.data.gov.uk/id/local-authority/32UF,AD Housing HRA,Professional and Contractors Fees,12/07/2022,30017653,590.00 ,MK Design Associates
South Holland District Council,http://statistics.data.gov.uk/id/local-authority/32UF,AD Housing HRA,Professional and Contractors Fees,21/07/2022,30017678,"1,250.00 ",Travelers Insurance Co Ltd
South Holland District Council,http://statistics.data.gov.uk/id/local-authority/32UF,AD Housing HRA,Professional and Contractors Fees,07/07/2022,30017742,"2,203.00 ",Bright Spark Studios Ltd
South Holland District Council,http://statistics.data.gov.uk/id/local-authority/32UF,AD Housing HRA,Professional and Contractors Fees,28/07/2022,30017769,855.00 ,Environtec Limited
South Holland District Council,http://statistics.data.gov.uk/id/local-authority/32UF,AD Housing HRA,Professional and Contractors Fees,04/08/2022,30017985,720.00 ,Calvert Brain & Fraulo Ltd
South Holland District Council,http://statistics.data.gov.uk/id/local-authority/32UF,AD Housing HRA,Professional and Contractors Fees,26/07/2022,30018438,"1,185.00 ",Morgan Lambert Ltd 2018
South Holland District Council,http://statistics.data.gov.uk/id/local-authority/32UF,AD Housing HRA,Professional and Contractors Fees,26/07/2022,30018440,790.00 ,Morgan Lambert Ltd 2018
South Holland District Council,http://statistics.data.gov.uk/id/local-authority/32UF,AD Housing HRA,Professional and Contractors Fees,26/07/2022,30018442,671.50 ,Morgan Lambert Ltd 2018
South Holland District Council,http://statistics.data.gov.uk/id/local-authority/32UF,AD Housing HRA,Professional and Contractors Fees,26/07/2022,30018465,500.00 ,Rowan Fire Ltd
South Holland District Council,http://statistics.data.gov.uk/id/local-authority/32UF,AD Housing HRA,Professional and Contractors Fees,26/07/2022,30018467,878.00 ,Lakeside Water & Building Services Ltd
South Holland District Council,http://statistics.data.gov.uk/id/local-authority/32UF,AD Housing HRA,Professional and Contractors Fees,26/07/2022,30018468,611.20 ,Lakeside Water & Building Services Ltd
South Holland District Council,http://statistics.data.gov.uk/id/local-authority/32UF,AD Housing HRA,Roof Repairs,19/07/2022,30018069,820.00 ,Kev Forman Roofing
South Holland District Council,http://statistics.data.gov.uk/id/local-authority/32UF,AD Housing HRA,Roof Repairs,19/07/2022,30018072,890.00 ,Kev Forman Roofing
South Holland District Council,http://statistics.data.gov.uk/id/local-authority/32UF,AD Housing HRA,Roof Repairs,19/07/2022,30018073,"1,555.00 ",Kev Forman Roofing
South Holland District Council,http://statistics.data.gov.uk/id/local-authority/32UF,AD Housing HRA,Roof Repairs,21/07/2022,30018134,"1,090.00 ",Kev Forman Roofing
South Holland District Council,http://statistics.data.gov.uk/id/local-authority/32UF,AD Housing HRA,Roof Repairs,21/07/2022,30018135,750.00 ,Kev Forman Roofing
South Holland District Council,http://statistics.data.gov.uk/id/local-authority/32UF,AD Housing HRA,Roof Repairs,21/07/2022,30018163,465.00 ,Wrights and Holbeach Asphalt Ltd
South Holland District Council,http://statistics.data.gov.uk/id/local-authority/32UF,AD Housing HRA,Roof Repairs,26/07/2022,30018164,790.00 ,Kev Forman Roofing
South Holland District Council,http://statistics.data.gov.uk/id/local-authority/32UF,AD Housing HRA,Roof Repairs,26/07/2022,30018169,715.00 ,Kev Forman Roofing
South Holland District Council,http://statistics.data.gov.uk/id/local-authority/32UF,AD Housing HRA,Roof Repairs,28/07/2022,30018523,740.00 ,Kev Forman Roofing
South Holland District Council,http://statistics.data.gov.uk/id/local-authority/32UF,AD Housing HRA,Roof Repairs,02/08/2022,30018528,795.00 ,Kev Forman Roofing
South Holland District Council,http://statistics.data.gov.uk/id/local-authority/32UF,AD Housing HRA,Roof Repairs,28/07/2022,30018538,790.00 ,Kev Forman Roofing
South Holland District Council,http://statistics.data.gov.uk/id/local-authority/32UF,AD Housing HRA,Sewerage Treatment Works,12/07/2022,30017045,"25,919.13 ",C G Godfrey Ltd
South Holland District Council,http://statistics.data.gov.uk/id/local-authority/32UF,AD Housing HRA,Sewerage Treatment Works,26/07/2022,30018146,"25,919.13 ",C G Godfrey Ltd
South Holland District Council,http://statistics.data.gov.uk/id/local-authority/32UF,AD Housing HRA,Solid Fuel Servicing,02/08/2022,30017770,"1,932.85 ",Aaron Services Ltd
South Holland District Council,http://statistics.data.gov.uk/id/local-authority/32UF,AD Housing HRA,Solid Fuel Servicing,04/08/2022,30018133,"2,130.00 ",Aaron Services Ltd
South Holland District Council,http://statistics.data.gov.uk/id/local-authority/32UF,AD Housing HRA,Works to Buildings (Main Contractor),07/07/2022,30017740,"1,816.49 ",Aaron Services Ltd
South Holland District Council,http://statistics.data.gov.uk/id/local-authority/32UF,AD Housing HRA,Works to Buildings (Main Contractor),28/07/2022,30017916,"2,586.00 ",Focus Consultants 2010 LLP
South Holland District Council,http://statistics.data.gov.uk/id/local-authority/32UF,AD Housing HRA,Works to Buildings (Main Contractor),14/07/2022,30018077,"6,908.82 ",J H Smithson and Son Ltd
South Holland District Council,http://statistics.data.gov.uk/id/local-authority/32UF,AD Housing HRA,Works to Buildings (Main Contractor),14/07/2022,30018078,"5,264.39 ",J H Smithson and Son Ltd
South Holland District Council,http://statistics.data.gov.uk/id/local-authority/32UF,AD Housing HRA,Works to Buildings (Main Contractor),19/07/2022,30018130,"77,823.93 ",D Brown Building Contractors Ltd
South Holland District Council,http://statistics.data.gov.uk/id/local-authority/32UF,AD Housing HRA,Works to Buildings (Main Contractor),19/07/2022,30018131,"35,016.31 ",D Brown Building Contractors Ltd
South Holland District Council,http://statistics.data.gov.uk/id/local-authority/32UF,AD Housing HRA,Works to Buildings (Main Contractor),19/07/2022,30018140,"15,261.01 ",D Brown Building Contractors Ltd
South Holland District Council,http://statistics.data.gov.uk/id/local-authority/32UF,AD Housing HRA,Works to Buildings (Main Contractor),26/07/2022,30018147,980.10 ,C G Godfrey Ltd
South Holland District Council,http://statistics.data.gov.uk/id/local-authority/32UF,AD Housing HRA,Works to Buildings (Main Contractor),26/07/2022,30018149,"3,604.10 ",C G Godfrey Ltd
South Holland District Council,http://statistics.data.gov.uk/id/local-authority/32UF,AD Housing HRA,Works to Buildings (Main Contractor),26/07/2022,30018154,"5,687.53 ",C G Godfrey Ltd
South Holland District Council,http://statistics.data.gov.uk/id/local-authority/32UF,AD Housing HRA,Works to Buildings (Main Contractor),21/07/2022,30018390,"16,500.00 ",NDJ Ltd T A Belton Construction
South Holland District Council,http://statistics.data.gov.uk/id/local-authority/32UF,AD Housing HRA,Works to Buildings (Main Contractor),26/07/2022,30018542,"36,588.89 ",Brothertoft Build Ltd
South Holland District Council,http://statistics.data.gov.uk/id/local-authority/32UF,AD Housing HRA,Works to Buildings (Main Contractor),28/07/2022,30018667,"1,181.00 ",Rybka Ltd
South Holland District Council,http://statistics.data.gov.uk/id/local-authority/32UF,AD Housing HRA,Works to Buildings (Main Contractor),02/08/2022,30018706,"75,092.58 ",Hodgson Sayers Ltd
South Holland District Council,http://statistics.data.gov.uk/id/local-authority/32UF,AD Housing HRA,Works to Buildings (Main Contractor),02/08/2022,30018707,"52,675.41 ",Hodgson Sayers Ltd
South Holland District Council,http://statistics.data.gov.uk/id/local-authority/32UF,AD Strategic Growth and Development,Furniture and Equipment,02/08/2022,30017849,575.00 ,Glenside Nurseries Ltd
South Holland District Council,http://statistics.data.gov.uk/id/local-authority/32UF,AD Strategic Growth and Development,Professional Fees,05/07/2022,30014072,"3,500.00 ",Thornton-Firkin LLP
South Holland District Council,http://statistics.data.gov.uk/id/local-authority/32UF,AD Strategic Growth and Development,Professional Fees,05/07/2022,30017694,"2,200.00 ",Thornton-Firkin LLP
South Holland District Council,http://statistics.data.gov.uk/id/local-authority/32UF,AD Strategic Growth and Development,Works to Buildings (Main Contractor),28/07/2022,30018571,"15,466.29 ",T M Browne Ltd
South Holland District Council,http://statistics.data.gov.uk/id/local-authority/32UF,AD Strategic Growth and Development HRA,Agency Staff,07/07/2022,30017768,"2,750.00 ",Park Avenue Recruitment Ltd
South Holland District Council,http://statistics.data.gov.uk/id/local-authority/32UF,AD Strategic Growth and Development HRA,Agency Staff,04/08/2022,30017822,"2,040.00 ",Vivid Resourcing
South Holland District Council,http://statistics.data.gov.uk/id/local-authority/32UF,AD Strategic Growth and Development HRA,Agency Staff,14/07/2022,30018000,"2,750.00 ",Park Avenue Recruitment Ltd
South Holland District Council,http://statistics.data.gov.uk/id/local-authority/32UF,AD Strategic Growth and Development HRA,Agency Staff,21/07/2022,30018364,"2,750.00 ",Park Avenue Recruitment Ltd
South Holland District Council,http://statistics.data.gov.uk/id/local-authority/32UF,AD Strategic Growth and Development HRA,Agency Staff,28/07/2022,30018597,"2,200.00 ",Park Avenue Recruitment Ltd
South Holland District Council,http://statistics.data.gov.uk/id/local-authority/32UF,AD Strategic Growth and Development HRA,Professional Fees,28/07/2022,30018684,570.00 ,Focus Consultants 2010 LLP
South Holland District Council,http://statistics.data.gov.uk/id/local-authority/32UF,AD Wellbeing and Community Leadership,Agency Staff,12/07/2022,30017511,"1,251.20 ",Park Avenue Recruitment Ltd
South Holland District Council,http://statistics.data.gov.uk/id/local-authority/32UF,AD Wellbeing and Community Leadership,Agency Staff,12/07/2022,30017512,754.80 ,Park Avenue Recruitment Ltd
South Holland District Council,http://statistics.data.gov.uk/id/local-authority/32UF,AD Wellbeing and Community Leadership,Agency Staff,12/07/2022,30017513,837.76 ,Park Avenue Recruitment Ltd
South Holland District Council,http://statistics.data.gov.uk/id/local-authority/32UF,AD Wellbeing and Community Leadership,Agency Staff,12/07/2022,30017514,"2,264.40 ",Park Avenue Recruitment Ltd
South Holland District Council,http://statistics.data.gov.uk/id/local-authority/32UF,AD Wellbeing and Community Leadership,Agency Staff,12/07/2022,30017517,"1,221.00 ",Park Avenue Recruitment Ltd
South Holland District Council,http://statistics.data.gov.uk/id/local-authority/32UF,AD Wellbeing and Community Leadership,Agency Staff,12/07/2022,30017518,"1,221.00 ",Park Avenue Recruitment Ltd
South Holland District Council,http://statistics.data.gov.uk/id/local-authority/32UF,AD Wellbeing and Community Leadership,Agency Staff,12/07/2022,30017519,"1,234.88 ",Park Avenue Recruitment Ltd
South Holland District Council,http://statistics.data.gov.uk/id/local-authority/32UF,AD Wellbeing and Community Leadership,Agency Staff,12/07/2022,30017524,"1,221.00 ",Park Avenue Recruitment Ltd
South Holland District Council,http://statistics.data.gov.uk/id/local-authority/32UF,AD Wellbeing and Community Leadership,Agency Staff,12/07/2022,30017556,"1,258.00 ",Park Avenue Recruitment Ltd
South Holland District Council,http://statistics.data.gov.uk/id/local-authority/32UF,AD Wellbeing and Community Leadership,Agency Staff,26/07/2022,30018411,"1,258.00 ",Park Avenue Recruitment Ltd
South Holland District Council,http://statistics.data.gov.uk/id/local-authority/32UF,AD Wellbeing and Community Leadership,Agency Staff,26/07/2022,30018413,"1,123.70 ",Park Avenue Recruitment Ltd
South Holland District Council,http://statistics.data.gov.uk/id/local-authority/32UF,AD Wellbeing and Community Leadership,Agency Staff,26/07/2022,30018414,"1,258.00 ",Park Avenue Recruitment Ltd
South Holland District Council,http://statistics.data.gov.uk/id/local-authority/32UF,AD Wellbeing and Community Leadership,Agency Staff,26/07/2022,30018415,"1,259.02 ",Park Avenue Recruitment Ltd
South Holland District Council,http://statistics.data.gov.uk/id/local-authority/32UF,AD Wellbeing and Community Leadership,Agency Staff,26/07/2022,30018430,841.50 ,Park Avenue Recruitment Ltd
South Holland District Council,http://statistics.data.gov.uk/id/local-authority/32UF,AD Wellbeing and Community Leadership,Agency Staff,26/07/2022,30018431,"1,221.00 ",Park Avenue Recruitment Ltd
South Holland District Council,http://statistics.data.gov.uk/id/local-authority/32UF,AD Wellbeing and Community Leadership,Agency Staff,26/07/2022,30018432,"1,237.50 ",Park Avenue Recruitment Ltd
South Holland District Council,http://statistics.data.gov.uk/id/local-authority/32UF,AD Wellbeing and Community Leadership,Bed and Breakfast Accommodation (Homelessness Service),12/07/2022,30016881,"4,497.78 ",G and A Hotels T A Woodlands Hotel
South Holland District Council,http://statistics.data.gov.uk/id/local-authority/32UF,AD Wellbeing and Community Leadership,Bed and Breakfast Accommodation (Homelessness Service),12/07/2022,30017439,"1,061.67 ",The Mansion House Hotel
South Holland District Council,http://statistics.data.gov.uk/id/local-authority/32UF,AD Wellbeing and Community Leadership,Bed and Breakfast Accommodation (Homelessness Service),12/07/2022,30017461,900.00 ,Riverside Hotel
South Holland District Council,http://statistics.data.gov.uk/id/local-authority/32UF,AD Wellbeing and Community Leadership,Bed and Breakfast Accommodation (Homelessness Service),12/07/2022,30017558,510.00 ,Dog in a Doublet
South Holland District Council,http://statistics.data.gov.uk/id/local-authority/32UF,AD Wellbeing and Community Leadership,Bed and Breakfast Accommodation (Homelessness Service),12/07/2022,30017561,"1,152.00 ",Dog in a Doublet
South Holland District Council,http://statistics.data.gov.uk/id/local-authority/32UF,AD Wellbeing and Community Leadership,Bed and Breakfast Accommodation (Homelessness Service),12/07/2022,30017603,"1,133.33 ",the Anchor Inn
South Holland District Council,http://statistics.data.gov.uk/id/local-authority/32UF,AD Wellbeing and Community Leadership,Bed and Breakfast Accommodation (Homelessness Service),12/07/2022,30017606,"1,837.50 ",the Anchor Inn
South Holland District Council,http://statistics.data.gov.uk/id/local-authority/32UF,AD Wellbeing and Community Leadership,Bed and Breakfast Accommodation (Homelessness Service),21/07/2022,30017748,641.67 ,The Mansion House Hotel
South Holland District Council,http://statistics.data.gov.uk/id/local-authority/32UF,AD Wellbeing and Community Leadership,Bed and Breakfast Accommodation (Homelessness Service),21/07/2022,30017749,530.83 ,The Mansion House Hotel
South Holland District Council,http://statistics.data.gov.uk/id/local-authority/32UF,AD Wellbeing and Community Leadership,Bed and Breakfast Accommodation (Homelessness Service),07/07/2022,30017751,641.67 ,The Mansion House Hotel
South Holland District Council,http://statistics.data.gov.uk/id/local-authority/32UF,AD Wellbeing and Community Leadership,Bed and Breakfast Accommodation (Homelessness Service),21/07/2022,30017755,480.00 ,Anglia Motel
South Holland District Council,http://statistics.data.gov.uk/id/local-authority/32UF,AD Wellbeing and Community Leadership,Bed and Breakfast Accommodation (Homelessness Service),21/07/2022,30017887,560.00 ,Anglia Motel
South Holland District Council,http://statistics.data.gov.uk/id/local-authority/32UF,AD Wellbeing and Community Leadership,Bed and Breakfast Accommodation (Homelessness Service),21/07/2022,30017888,490.00 ,Anglia Motel
South Holland District Council,http://statistics.data.gov.uk/id/local-authority/32UF,AD Wellbeing and Community Leadership,Bed and Breakfast Accommodation (Homelessness Service),21/07/2022,30017889,945.00 ,Anglia Motel
South Holland District Council,http://statistics.data.gov.uk/id/local-authority/32UF,AD Wellbeing and Community Leadership,Bed and Breakfast Accommodation (Homelessness Service),21/07/2022,30017891,945.00 ,Anglia Motel
South Holland District Council,http://statistics.data.gov.uk/id/local-authority/32UF,AD Wellbeing and Community Leadership,Bed and Breakfast Accommodation (Homelessness Service),21/07/2022,30017892,875.00 ,Anglia Motel
South Holland District Council,http://statistics.data.gov.uk/id/local-authority/32UF,AD Wellbeing and Community Leadership,Bed and Breakfast Accommodation (Homelessness Service),21/07/2022,30017893,"1,215.00 ",Anglia Motel
South Holland District Council,http://statistics.data.gov.uk/id/local-authority/32UF,AD Wellbeing and Community Leadership,Bed and Breakfast Accommodation (Homelessness Service),21/07/2022,30017894,945.00 ,Anglia Motel
South Holland District Council,http://statistics.data.gov.uk/id/local-authority/32UF,AD Wellbeing and Community Leadership,Bed and Breakfast Accommodation (Homelessness Service),21/07/2022,30017895,945.00 ,Anglia Motel
South Holland District Council,http://statistics.data.gov.uk/id/local-authority/32UF,AD Wellbeing and Community Leadership,Bed and Breakfast Accommodation (Homelessness Service),21/07/2022,30017896,490.00 ,Anglia Motel
South Holland District Council,http://statistics.data.gov.uk/id/local-authority/32UF,AD Wellbeing and Community Leadership,Bed and Breakfast Accommodation (Homelessness Service),21/07/2022,30017897,945.00 ,Anglia Motel
South Holland District Council,http://statistics.data.gov.uk/id/local-authority/32UF,AD Wellbeing and Community Leadership,Bed and Breakfast Accommodation (Homelessness Service),21/07/2022,30017898,945.00 ,Anglia Motel
South Holland District Council,http://statistics.data.gov.uk/id/local-authority/32UF,AD Wellbeing and Community Leadership,Bed and Breakfast Accommodation (Homelessness Service),21/07/2022,30017899,560.00 ,Anglia Motel
South Holland District Council,http://statistics.data.gov.uk/id/local-authority/32UF,AD Wellbeing and Community Leadership,Bed and Breakfast Accommodation (Homelessness Service),21/07/2022,30017900,560.00 ,Anglia Motel
South Holland District Council,http://statistics.data.gov.uk/id/local-authority/32UF,AD Wellbeing and Community Leadership,Bed and Breakfast Accommodation (Homelessness Service),21/07/2022,30017901,560.00 ,Anglia Motel
South Holland District Council,http://statistics.data.gov.uk/id/local-authority/32UF,AD Wellbeing and Community Leadership,Bed and Breakfast Accommodation (Homelessness Service),26/07/2022,30018243,530.83 ,The Mansion House Hotel
South Holland District Council,http://statistics.data.gov.uk/id/local-authority/32UF,AD Wellbeing and Community Leadership,Bed and Breakfast Accommodation (Homelessness Service),26/07/2022,30018370,650.00 ,Riverside Hotel
South Holland District Council,http://statistics.data.gov.uk/id/local-authority/32UF,AD Wellbeing and Community Leadership,Bed and Breakfast Accommodation (Homelessness Service),26/07/2022,30018445,530.83 ,The Mansion House Hotel
South Holland District Council,http://statistics.data.gov.uk/id/local-authority/32UF,AD Wellbeing and Community Leadership,Bed and Breakfast Accommodation (Homelessness Service),26/07/2022,30018446,641.67 ,The Mansion House Hotel
South Holland District Council,http://statistics.data.gov.uk/id/local-authority/32UF,AD Wellbeing and Community Leadership,Bed and Breakfast Accommodation (Homelessness Service),28/07/2022,30018475,"1,360.00 ",The Boat House
South Holland District Council,http://statistics.data.gov.uk/id/local-authority/32UF,AD Wellbeing and Community Leadership,Bed and Breakfast Accommodation (Homelessness Service),28/07/2022,30018476,"1,045.00 ",The Boat House
South Holland District Council,http://statistics.data.gov.uk/id/local-authority/32UF,AD Wellbeing and Community Leadership,Bed and Breakfast Accommodation (Homelessness Service),28/07/2022,30018477,945.00 ,The Boat House
South Holland District Council,http://statistics.data.gov.uk/id/local-authority/32UF,AD Wellbeing and Community Leadership,Bed and Breakfast Accommodation (Homelessness Service),28/07/2022,30018478,"1,995.00 ",The Boat House
South Holland District Council,http://statistics.data.gov.uk/id/local-authority/32UF,AD Wellbeing and Community Leadership,Bed and Breakfast Accommodation (Homelessness Service),28/07/2022,30018479,"2,205.00 ",The Boat House
South Holland District Council,http://statistics.data.gov.uk/id/local-authority/32UF,AD Wellbeing and Community Leadership,Bed and Breakfast Accommodation (Homelessness Service),28/07/2022,30018480,"1,995.00 ",The Boat House
South Holland District Council,http://statistics.data.gov.uk/id/local-authority/32UF,AD Wellbeing and Community Leadership,Bed and Breakfast Accommodation (Homelessness Service),26/07/2022,30018486,560.00 ,Anglia Motel
South Holland District Council,http://statistics.data.gov.uk/id/local-authority/32UF,AD Wellbeing and Community Leadership,Bed and Breakfast Accommodation (Homelessness Service),26/07/2022,30018487,560.00 ,Anglia Motel
South Holland District Council,http://statistics.data.gov.uk/id/local-authority/32UF,AD Wellbeing and Community Leadership,Bed and Breakfast Accommodation (Homelessness Service),26/07/2022,30018488,490.00 ,Anglia Motel
South Holland District Council,http://statistics.data.gov.uk/id/local-authority/32UF,AD Wellbeing and Community Leadership,Bed and Breakfast Accommodation (Homelessness Service),26/07/2022,30018490,945.00 ,Anglia Motel
South Holland District Council,http://statistics.data.gov.uk/id/local-authority/32UF,AD Wellbeing and Community Leadership,Bed and Breakfast Accommodation (Homelessness Service),26/07/2022,30018491,945.00 ,Anglia Motel
South Holland District Council,http://statistics.data.gov.uk/id/local-authority/32UF,AD Wellbeing and Community Leadership,Bed and Breakfast Accommodation (Homelessness Service),26/07/2022,30018492,875.00 ,Anglia Motel
South Holland District Council,http://statistics.data.gov.uk/id/local-authority/32UF,AD Wellbeing and Community Leadership,Bed and Breakfast Accommodation (Homelessness Service),26/07/2022,30018493,945.00 ,Anglia Motel
South Holland District Council,http://statistics.data.gov.uk/id/local-authority/32UF,AD Wellbeing and Community Leadership,Bed and Breakfast Accommodation (Homelessness Service),26/07/2022,30018494,675.00 ,Anglia Motel
South Holland District Council,http://statistics.data.gov.uk/id/local-authority/32UF,AD Wellbeing and Community Leadership,Bed and Breakfast Accommodation (Homelessness Service),26/07/2022,30018495,945.00 ,Anglia Motel
South Holland District Council,http://statistics.data.gov.uk/id/local-authority/32UF,AD Wellbeing and Community Leadership,Bed and Breakfast Accommodation (Homelessness Service),26/07/2022,30018496,490.00 ,Anglia Motel
South Holland District Council,http://statistics.data.gov.uk/id/local-authority/32UF,AD Wellbeing and Community Leadership,Bed and Breakfast Accommodation (Homelessness Service),26/07/2022,30018497,945.00 ,Anglia Motel
South Holland District Council,http://statistics.data.gov.uk/id/local-authority/32UF,AD Wellbeing and Community Leadership,Bed and Breakfast Accommodation (Homelessness Service),26/07/2022,30018498,945.00 ,Anglia Motel
South Holland District Council,http://statistics.data.gov.uk/id/local-authority/32UF,AD Wellbeing and Community Leadership,Bed and Breakfast Accommodation (Homelessness Service),26/07/2022,30018499,560.00 ,Anglia Motel
South Holland District Council,http://statistics.data.gov.uk/id/local-authority/32UF,AD Wellbeing and Community Leadership,Bed and Breakfast Accommodation (Homelessness Service),26/07/2022,30018500,560.00 ,Anglia Motel
South Holland District Council,http://statistics.data.gov.uk/id/local-authority/32UF,AD Wellbeing and Community Leadership,Bed and Breakfast Accommodation (Homelessness Service),26/07/2022,30018501,560.00 ,Anglia Motel
South Holland District Council,http://statistics.data.gov.uk/id/local-authority/32UF,AD Wellbeing and Community Leadership,Bed and Breakfast Accommodation (Homelessness Service),26/07/2022,30018502,440.00 ,Anglia Motel
South Holland District Council,http://statistics.data.gov.uk/id/local-authority/32UF,AD Wellbeing and Community Leadership,Bed and Breakfast Accommodation (Homelessness Service),26/07/2022,30018536,641.67 ,The Mansion House Hotel
South Holland District Council,http://statistics.data.gov.uk/id/local-authority/32UF,AD Wellbeing and Community Leadership,Bed and Breakfast Accommodation (Homelessness Service),26/07/2022,30018537,530.83 ,The Mansion House Hotel
South Holland District Council,http://statistics.data.gov.uk/id/local-authority/32UF,AD Wellbeing and Community Leadership,Grants and Contributions to Outside Bodies - No Service Received,28/07/2022,30017502,688.80 ,Closomat Ltd
South Holland District Council,http://statistics.data.gov.uk/id/local-authority/32UF,AD Wellbeing and Community Leadership,Grants and Contributions to Outside Bodies - No Service Received,12/07/2022,30017676,"2,249.11 ",M P L Home Improvements
South Holland District Council,http://statistics.data.gov.uk/id/local-authority/32UF,AD Wellbeing and Community Leadership,Grants and Contributions to Outside Bodies - No Service Received,21/07/2022,30017948,"3,480.00 ",Obam Domestic Lift Services Ltd
South Holland District Council,http://statistics.data.gov.uk/id/local-authority/32UF,AD Wellbeing and Community Leadership,Grants and Contributions to Outside Bodies - No Service Received,14/07/2022,30017950,"3,494.00 ",S R K Electrical Services
South Holland District Council,http://statistics.data.gov.uk/id/local-authority/32UF,AD Wellbeing and Community Leadership,Grants and Contributions to Outside Bodies - No Service Received,21/07/2022,30017995,"2,790.40 ",North Kesteven District Council
South Holland District Council,http://statistics.data.gov.uk/id/local-authority/32UF,AD Wellbeing and Community Leadership,Grants and Contributions to Outside Bodies - No Service Received,21/07/2022,30018008,960.00 ,G R Merchant Ltd
South Holland District Council,http://statistics.data.gov.uk/id/local-authority/32UF,AD Wellbeing and Community Leadership,Grants and Contributions to Outside Bodies - No Service Received,26/07/2022,30018079,"4,911.00 ",Obam Domestic Lift Services Ltd
South Holland District Council,http://statistics.data.gov.uk/id/local-authority/32UF,AD Wellbeing and Community Leadership,Grants and Contributions to Outside Bodies - No Service Received,26/07/2022,30018080,"2,527.00 ",Obam Domestic Lift Services Ltd
South Holland District Council,http://statistics.data.gov.uk/id/local-authority/32UF,AD Wellbeing and Community Leadership,Grants and Contributions to Outside Bodies - No Service Received,21/07/2022,30018099,625.52 ,Longhurst Group
South Holland District Council,http://statistics.data.gov.uk/id/local-authority/32UF,AD Wellbeing and Community Leadership,Grants and Contributions to Outside Bodies - No Service Received,28/07/2022,30018384,"2,869.24 ",Holbeach Heating Ltd
South Holland District Council,http://statistics.data.gov.uk/id/local-authority/32UF,AD Wellbeing and Community Leadership,Grants and Contributions to Outside Bodies - No Service Received,21/07/2022,30018388,"29,013.00 ",Martin Greaves Building Contractor
South Holland District Council,http://statistics.data.gov.uk/id/local-authority/32UF,AD Wellbeing and Community Leadership,Grants and Contributions to Outside Bodies - No Service Received,21/07/2022,30018389,"44,715.00 ",Martin Greaves Building Contractor
South Holland District Council,http://statistics.data.gov.uk/id/local-authority/32UF,AD Wellbeing and Community Leadership,Grants and Contributions to Outside Bodies - No Service Received,21/07/2022,30018391,"18,419.00 ",Brothertoft Build Ltd
South Holland District Council,http://statistics.data.gov.uk/id/local-authority/32UF,AD Wellbeing and Community Leadership,Grants and Contributions to Outside Bodies - No Service Received,02/08/2022,30018392,"7,588.00 ",Obam Domestic Lift Services Ltd
South Holland District Council,http://statistics.data.gov.uk/id/local-authority/32UF,AD Wellbeing and Community Leadership,Professional and Contractors Fees,28/07/2022,30017784,"1,566.00 ",Language Line Ltd
South Holland District Council,http://statistics.data.gov.uk/id/local-authority/32UF,Asset & Property,Buildings Maintenance - Programmed,07/07/2022,30017187,"3,130.00 ",Tyrrell Contractors Ltd
South Holland District Council,http://statistics.data.gov.uk/id/local-authority/32UF,Asset & Property,Buildings Maintenance - Programmed,07/07/2022,30017647,500.00 ,LJ Landscapes Ltd
South Holland District Council,http://statistics.data.gov.uk/id/local-authority/32UF,Asset & Property,Buildings Maintenance - Programmed,12/07/2022,30017859,"1,260.00 ",Longstaff Client Account
South Holland District Council,http://statistics.data.gov.uk/id/local-authority/32UF,Asset & Property,Buildings Maintenance - Programmed,14/07/2022,30017860,"2,780.00 ",Oglesby and Limb Ltd
South Holland District Council,http://statistics.data.gov.uk/id/local-authority/32UF,Asset & Property,Buildings Maintenance - Programmed,21/07/2022,30018002,"2,144.95 ",Wybone Ltd
South Holland District Council,http://statistics.data.gov.uk/id/local-authority/32UF,Asset & Property,Buildings Maintenance - Programmed,19/07/2022,30018199,"1,935.00 ",AB Property T/A AB Electrical UK Limited
South Holland District Council,http://statistics.data.gov.uk/id/local-authority/32UF,Asset & Property,Buildings Maintenance - Programmed,26/07/2022,30018544,"8,600.00 ",D Harrison
South Holland District Council,http://statistics.data.gov.uk/id/local-authority/32UF,Asset & Property,Buildings Maintenance - Programmed,28/07/2022,30018622,750.00 ,LJ Landscapes Ltd
South Holland District Council,http://statistics.data.gov.uk/id/local-authority/32UF,Asset & Property,Buildings Maintenance - Responsive,07/07/2022,30016857,992.25 ,Stannah
South Holland District Council,http://statistics.data.gov.uk/id/local-authority/32UF,Asset & Property,Buildings Maintenance - Responsive,05/07/2022,30017092,925.00 ,Newflame
South Holland District Council,http://statistics.data.gov.uk/id/local-authority/32UF,Asset & Property,Buildings Maintenance - Responsive,07/07/2022,30017164,"2,260.00 ",LJ Landscapes Ltd
South Holland District Council,http://statistics.data.gov.uk/id/local-authority/32UF,Asset & Property,Buildings Maintenance - Responsive,19/07/2022,30017189,"4,113.00 ",Adcock Refrig  Air Conditioning Ltd
South Holland District Council,http://statistics.data.gov.uk/id/local-authority/32UF,Asset & Property,Buildings Maintenance - Responsive,05/07/2022,30017404,"20,477.00 ",Warics Ltd
South Holland District Council,http://statistics.data.gov.uk/id/local-authority/32UF,Asset & Property,Buildings Maintenance - Responsive,14/07/2022,30017713,"3,823.82 ",GBSG Ltd
South Holland District Council,http://statistics.data.gov.uk/id/local-authority/32UF,Asset & Property,Buildings Maintenance - Responsive,14/07/2022,30017741,688.68 ,GBSG Ltd
South Holland District Council,http://statistics.data.gov.uk/id/local-authority/32UF,Asset & Property,Buildings Maintenance - Responsive,07/07/2022,30017800,"2,394.93 ",Ian Brown Electrical Engineers Ltd
South Holland District Council,http://statistics.data.gov.uk/id/local-authority/32UF,Asset & Property,Buildings Maintenance - Responsive,14/07/2022,30017969,660.00 ,Drains R Us (Eastern) Ltd
South Holland District Council,http://statistics.data.gov.uk/id/local-authority/32UF,Asset & Property,Buildings Maintenance - Responsive,14/07/2022,30018066,"3,850.00 ",D Harrison
South Holland District Council,http://statistics.data.gov.uk/id/local-authority/32UF,Asset & Property,Buildings Maintenance - Responsive,14/07/2022,30018067,"3,450.00 ",D Harrison
South Holland District Council,http://statistics.data.gov.uk/id/local-authority/32UF,Asset & Property,Buildings Maintenance - Responsive,21/07/2022,30018139,"2,356.20 ",Tyrrell Contractors Ltd
South Holland District Council,http://statistics.data.gov.uk/id/local-authority/32UF,Asset & Property,Buildings Maintenance - Responsive,28/07/2022,30018541,"2,204.03 ",Ian Brown Electrical Engineers Ltd
South Holland District Council,http://statistics.data.gov.uk/id/local-authority/32UF,Asset & Property,Electricity,05/07/2022,30017369,"3,614.91 ",Total Energies
South Holland District Council,http://statistics.data.gov.uk/id/local-authority/32UF,Asset & Property,Electricity,19/07/2022,30018158,"3,418.09 ",Total Energies
South Holland District Council,http://statistics.data.gov.uk/id/local-authority/32UF,Asset & Property,Electricity,21/07/2022,30018332,"3,809.99 ",Total Energies
South Holland District Council,http://statistics.data.gov.uk/id/local-authority/32UF,Asset & Property,Electricity,21/07/2022,30018334,"3,361.18 ",Total Energies
South Holland District Council,http://statistics.data.gov.uk/id/local-authority/32UF,Asset & Property,Electricity,26/07/2022,30018400,834.43 ,E.on Next
South Holland District Council,http://statistics.data.gov.uk/id/local-authority/32UF,Asset & Property,Gas,05/07/2022,30017468,998.86 ,Espo Gas and Electricity
South Holland District Council,http://statistics.data.gov.uk/id/local-authority/32UF,Asset & Property,Gas,28/07/2022,30018276,"1,642.99 ",Espo Gas and Electricity
South Holland District Council,http://statistics.data.gov.uk/id/local-authority/32UF,Asset & Property,Lincolnshire Legal Services,21/07/2022,30017298,"4,860.35 ",Lincolnshire County Council
South Holland District Council,http://statistics.data.gov.uk/id/local-authority/32UF,Asset & Property,Lincolnshire Legal Services,19/07/2022,30018179,"3,068.06 ",Lincolnshire County Council
South Holland District Council,http://statistics.data.gov.uk/id/local-authority/32UF,Asset & Property,Other Miscellaneous Expenses,07/07/2022,30016585,"2,416.70 ",Kents of Spalding Ltd
South Holland District Council,http://statistics.data.gov.uk/id/local-authority/32UF,Asset & Property,Professional and Contractors Fees,26/07/2022,30017782,"4,000.00 ",NPS Peterborough Ltd
South Holland District Council,http://statistics.data.gov.uk/id/local-authority/32UF,Asset & Property,Professional and Contractors Fees,14/07/2022,30018030,"2,000.00 ",Eddisons
South Holland District Council,http://statistics.data.gov.uk/id/local-authority/32UF,Asset & Property,Water and Sewerage Charges,28/07/2022,30018689,748.87 ,Wave
South Holland District Council,http://statistics.data.gov.uk/id/local-authority/32UF,Building Control,Professional and Contractors Fees,28/07/2022,30017856,940.00 ,Navitas EAS
South Holland District Council,http://statistics.data.gov.uk/id/local-authority/32UF,Building Control,Professional and Contractors Fees,02/08/2022,30018508,"3,512.50 ",Lincolnshire County Council
South Holland District Council,http://statistics.data.gov.uk/id/local-authority/32UF,Capital - Strategic Finance & Compliance,Works to Buildings (Main Contractor),21/07/2022,30017220,"10,038.00 ",Airedale Catering Equip. Ltd
South Holland District Council,http://statistics.data.gov.uk/id/local-authority/32UF,Capital - Strategic Finance & Compliance,Works to Buildings (Main Contractor),19/07/2022,30018065,"47,597.00 ",D Harrison
South Holland District Council,http://statistics.data.gov.uk/id/local-authority/32UF,Democratic Services - Democratic,Other Miscellaneous Expenses,05/07/2022,30017152,"1,000.00 ",Halmer Harriers
South Holland District Council,http://statistics.data.gov.uk/id/local-authority/32UF,Democratic Services - Democratic,Other Miscellaneous Expenses,14/07/2022,30017851,600.00 ,The Village Voice Community Magazine
South Holland District Council,http://statistics.data.gov.uk/id/local-authority/32UF,Democratic Services - Democratic,Other Miscellaneous Expenses,21/07/2022,30018112,"2,000.00 ",the Curlew Centre
South Holland District Council,http://statistics.data.gov.uk/id/local-authority/32UF,Democratic Services - Democratic,Other Miscellaneous Expenses,19/07/2022,30018142,"1,000.00 ",Laurel Park Campsite Ltd
South Holland District Council,http://statistics.data.gov.uk/id/local-authority/32UF,Democratic Services - Democratic,Other Miscellaneous Expenses,26/07/2022,30018481,"2,000.00 ",Holbeach Moving Forwards
South Holland District Council,http://statistics.data.gov.uk/id/local-authority/32UF,Democratic Services - Democratic,Other Miscellaneous Expenses,26/07/2022,30018559,"2,100.00 ",Crowland Parish Council
South Holland District Council,http://statistics.data.gov.uk/id/local-authority/32UF,Democratic Services - Legal,Legal Fees,19/07/2022,30017695,940.68 ,Lincolnshire County Council
South Holland District Council,http://statistics.data.gov.uk/id/local-authority/32UF,Democratic Services - Legal,Legal Fees Non-Routine,21/07/2022,30018417,"2,876.00 ",Womble Bond Dickinson UK LLP
South Holland District Council,http://statistics.data.gov.uk/id/local-authority/32UF,Democratic Services - Legal,Legal Fees Non-Routine,26/07/2022,30018456,"1,900.00 ",Landmark Chambers
South Holland District Council,http://statistics.data.gov.uk/id/local-authority/32UF,Economic Development,Grants and Contributions to Outside Bodies - No Service Received,19/07/2022,30018085,"3,230.25 ",Amelio Enterprises Ltd
South Holland District Council,http://statistics.data.gov.uk/id/local-authority/32UF,Economic Development,Grants and Contributions to Outside Bodies - No Service Received,19/07/2022,30018086,"1,922.00 ",East Anglia Vets Ltd
South Holland District Council,http://statistics.data.gov.uk/id/local-authority/32UF,Economic Development,Grants and Contributions to Outside Bodies - No Service Received,19/07/2022,30018087,"24,999.00 ",Burton Waters Marina Ltd
South Holland District Council,http://statistics.data.gov.uk/id/local-authority/32UF,Economic Development,Grants and Contributions to Outside Bodies - No Service Received,19/07/2022,30018088,"23,801.11 ",AML Instruments Ltd
South Holland District Council,http://statistics.data.gov.uk/id/local-authority/32UF,Economic Development,Grants and Contributions to Outside Bodies - No Service Received,19/07/2022,30018090,"15,598.00 ",Agri-Linc Ltd
South Holland District Council,http://statistics.data.gov.uk/id/local-authority/32UF,Economic Development,Grants and Contributions to Outside Bodies - No Service Received,21/07/2022,30018320,"10,188.00 ",Leaf Design UK Ltd
South Holland District Council,http://statistics.data.gov.uk/id/local-authority/32UF,Economic Development,Grants and Contributions to Outside Bodies - No Service Received,21/07/2022,30018387,"15,720.00 ",L & F Blasting Ltd
South Holland District Council,http://statistics.data.gov.uk/id/local-authority/32UF,Economic Development,Grants and Contributions to Outside Bodies - No Service Received,26/07/2022,30018547,"19,571.00 ",Fair Share Group Ltd
South Holland District Council,http://statistics.data.gov.uk/id/local-authority/32UF,Economic Development,Grants and Contributions to Outside Bodies - No Service Received,26/07/2022,30018548,"17,944.00 ",UK Trailer Parts Ltd
South Holland District Council,http://statistics.data.gov.uk/id/local-authority/32UF,Economic Development,Professional and Contractors Fees,19/07/2022,30017723,750.00 ,Social Change UK
South Holland District Council,http://statistics.data.gov.uk/id/local-authority/32UF,Environmental Services,Agency Staff,05/07/2022,30017662,"3,263.59 ",Integrity Plus Ltd
South Holland District Council,http://statistics.data.gov.uk/id/local-authority/32UF,Environmental Services,Agency Staff,05/07/2022,30017669,615.68 ,Quality Service Recruitment Ltd
South Holland District Council,http://statistics.data.gov.uk/id/local-authority/32UF,Environmental Services,Agency Staff,05/07/2022,30017687,"2,111.31 ",Integrity Plus Ltd
South Holland District Council,http://statistics.data.gov.uk/id/local-authority/32UF,Environmental Services,Agency Staff,07/07/2022,30017767,626.78 ,247 Personnel Ltd
South Holland District Council,http://statistics.data.gov.uk/id/local-authority/32UF,Environmental Services,Agency Staff,07/07/2022,30017777,561.29 ,Blue Arrow Ltd
South Holland District Council,http://statistics.data.gov.uk/id/local-authority/32UF,Environmental Services,Agency Staff,07/07/2022,30017779,"1,205.75 ",Questech Recruitment Limited
South Holland District Council,http://statistics.data.gov.uk/id/local-authority/32UF,Environmental Services,Agency Staff,07/07/2022,30017780,"2,027.25 ",Questech Recruitment Limited
South Holland District Council,http://statistics.data.gov.uk/id/local-authority/32UF,Environmental Services,Agency Staff,07/07/2022,30017785,624.93 ,The Best Connection Group Ltd
South Holland District Council,http://statistics.data.gov.uk/id/local-authority/32UF,Environmental Services,Agency Staff,07/07/2022,30017786,"1,596.18 ",The Best Connection Group Ltd
South Holland District Council,http://statistics.data.gov.uk/id/local-authority/32UF,Environmental Services,Agency Staff,07/07/2022,30017808,"2,580.75 ",NJW Services
South Holland District Council,http://statistics.data.gov.uk/id/local-authority/32UF,Environmental Services,Agency Staff,07/07/2022,30017819,"2,211.14 ",Integrity Plus Ltd
South Holland District Council,http://statistics.data.gov.uk/id/local-authority/32UF,Environmental Services,Agency Staff,07/07/2022,30017821,488.40 ,Essential Staffing Ltd
South Holland District Council,http://statistics.data.gov.uk/id/local-authority/32UF,Environmental Services,Agency Staff,21/07/2022,30017823,"3,180.83 ",Integrity Plus Ltd
South Holland District Council,http://statistics.data.gov.uk/id/local-authority/32UF,Environmental Services,Agency Staff,12/07/2022,30017824,"1,709.53 ",Encore Personnel Services Ltd
South Holland District Council,http://statistics.data.gov.uk/id/local-authority/32UF,Environmental Services,Agency Staff,12/07/2022,30017825,"3,050.62 ",Integrity Plus Ltd
South Holland District Council,http://statistics.data.gov.uk/id/local-authority/32UF,Environmental Services,Agency Staff,04/08/2022,30017906,"1,033.50 ",Questech Recruitment Limited
South Holland District Council,http://statistics.data.gov.uk/id/local-authority/32UF,Environmental Services,Agency Staff,12/07/2022,30017956,628.00 ,Steves Garden and Household Services
South Holland District Council,http://statistics.data.gov.uk/id/local-authority/32UF,Environmental Services,Agency Staff,12/07/2022,30017957,615.68 ,Quality Service Recruitment Ltd
South Holland District Council,http://statistics.data.gov.uk/id/local-authority/32UF,Environmental Services,Agency Staff,14/07/2022,30017982,561.29 ,Blue Arrow Ltd
South Holland District Council,http://statistics.data.gov.uk/id/local-authority/32UF,Environmental Services,Agency Staff,14/07/2022,30017983,"1,985.60 ",Integrity Plus Ltd
South Holland District Council,http://statistics.data.gov.uk/id/local-authority/32UF,Environmental Services,Agency Staff,14/07/2022,30017984,552.78 ,Integrity Plus Ltd
South Holland District Council,http://statistics.data.gov.uk/id/local-authority/32UF,Environmental Services,Agency Staff,26/07/2022,30018061,"1,171.30 ",Questech Recruitment Limited
South Holland District Council,http://statistics.data.gov.uk/id/local-authority/32UF,Environmental Services,Agency Staff,19/07/2022,30018062,"1,143.74 ",Questech Recruitment Limited
South Holland District Council,http://statistics.data.gov.uk/id/local-authority/32UF,Environmental Services,Agency Staff,19/07/2022,30018210,"1,143.74 ",Questech Recruitment Limited
South Holland District Council,http://statistics.data.gov.uk/id/local-authority/32UF,Environmental Services,Agency Staff,19/07/2022,30018301,"2,550.57 ",Encore Personnel Services Ltd
South Holland District Council,http://statistics.data.gov.uk/id/local-authority/32UF,Environmental Services,Agency Staff,19/07/2022,30018302,626.78 ,247 Personnel Ltd
South Holland District Council,http://statistics.data.gov.uk/id/local-authority/32UF,Environmental Services,Agency Staff,19/07/2022,30018303,626.78 ,247 Personnel Ltd
South Holland District Council,http://statistics.data.gov.uk/id/local-authority/32UF,Environmental Services,Agency Staff,21/07/2022,30018340,539.83 ,Capital Outsourcing Group Food
South Holland District Council,http://statistics.data.gov.uk/id/local-authority/32UF,Environmental Services,Agency Staff,21/07/2022,30018342,501.42 ,247 Personnel Ltd
South Holland District Council,http://statistics.data.gov.uk/id/local-authority/32UF,Environmental Services,Agency Staff,21/07/2022,30018344,"1,907.95 ",Integrity Plus Ltd
South Holland District Council,http://statistics.data.gov.uk/id/local-authority/32UF,Environmental Services,Agency Staff,21/07/2022,30018395,561.29 ,Blue Arrow Ltd
South Holland District Council,http://statistics.data.gov.uk/id/local-authority/32UF,Environmental Services,Agency Staff,21/07/2022,30018396,"2,061.71 ",Encore Personnel Services Ltd
South Holland District Council,http://statistics.data.gov.uk/id/local-authority/32UF,Environmental Services,Agency Staff,26/07/2022,30018397,"3,310.48 ",Integrity Plus Ltd
South Holland District Council,http://statistics.data.gov.uk/id/local-authority/32UF,Environmental Services,Agency Staff,21/07/2022,30018398,"1,276.94 ",The Best Connection Group Ltd
South Holland District Council,http://statistics.data.gov.uk/id/local-authority/32UF,Environmental Services,Agency Staff,21/07/2022,30018399,798.09 ,The Best Connection Group Ltd
South Holland District Council,http://statistics.data.gov.uk/id/local-authority/32UF,Environmental Services,Agency Staff,21/07/2022,30018401,488.40 ,Essential Staffing Ltd
South Holland District Council,http://statistics.data.gov.uk/id/local-authority/32UF,Environmental Services,Agency Staff,26/07/2022,30018469,622.00 ,Steves Garden and Household Services
South Holland District Council,http://statistics.data.gov.uk/id/local-authority/32UF,Environmental Services,Agency Staff,26/07/2022,30018519,"2,706.91 ",Encore Personnel Services Ltd
South Holland District Council,http://statistics.data.gov.uk/id/local-authority/32UF,Environmental Services,Agency Staff,26/07/2022,30018521,465.59 ,Workchain
South Holland District Council,http://statistics.data.gov.uk/id/local-authority/32UF,Environmental Services,Agency Staff,26/07/2022,30018522,488.40 ,Essential Staffing Ltd
South Holland District Council,http://statistics.data.gov.uk/id/local-authority/32UF,Environmental Services,Agency Staff,26/07/2022,30018524,561.29 ,Blue Arrow Ltd
South Holland District Council,http://statistics.data.gov.uk/id/local-authority/32UF,Environmental Services,Agency Staff,28/07/2022,30018593,552.78 ,Integrity Plus Ltd
South Holland District Council,http://statistics.data.gov.uk/id/local-authority/32UF,Environmental Services,Agency Staff,28/07/2022,30018669,471.53 ,247 Personnel Ltd
South Holland District Council,http://statistics.data.gov.uk/id/local-authority/32UF,Environmental Services,Agency Staff,02/08/2022,30018671,539.83 ,Capital Outsourcing Group Food
South Holland District Council,http://statistics.data.gov.uk/id/local-authority/32UF,Environmental Services,Agency Staff,28/07/2022,30018674,"1,609.50 ",The Best Connection Group Ltd
South Holland District Council,http://statistics.data.gov.uk/id/local-authority/32UF,Environmental Services,Agency Staff,28/07/2022,30018675,610.00 ,Steves Garden and Household Services
South Holland District Council,http://statistics.data.gov.uk/id/local-authority/32UF,Environmental Services,Agency Staff,28/07/2022,30018681,431.86 ,Capital Outsourcing Group Food
South Holland District Council,http://statistics.data.gov.uk/id/local-authority/32UF,Environmental Services,Agency Staff,28/07/2022,30018685,"3,644.48 ",Integrity Plus Ltd
South Holland District Council,http://statistics.data.gov.uk/id/local-authority/32UF,Environmental Services,Agency Staff,02/08/2022,30018700,449.03 ,Blue Arrow Ltd
South Holland District Council,http://statistics.data.gov.uk/id/local-authority/32UF,Environmental Services,Agency Staff,02/08/2022,30018702,552.78 ,Integrity Plus Ltd
South Holland District Council,http://statistics.data.gov.uk/id/local-authority/32UF,Environmental Services,Fuel and Oil,05/07/2022,30017655,"10,354.75 ",C H Jones Ltd
South Holland District Council,http://statistics.data.gov.uk/id/local-authority/32UF,Environmental Services,Fuel and Oil,12/07/2022,30017836,"10,511.54 ",C H Jones Ltd
South Holland District Council,http://statistics.data.gov.uk/id/local-authority/32UF,Environmental Services,Fuel and Oil,26/07/2022,30017939,"1,484.89 ",Witham Oil and Paint Ltd
South Holland District Council,http://statistics.data.gov.uk/id/local-authority/32UF,Environmental Services,Fuel and Oil,19/07/2022,30017942,"2,334.80 ",WCF Chandlers
South Holland District Council,http://statistics.data.gov.uk/id/local-authority/32UF,Environmental Services,Fuel and Oil,28/07/2022,30018360,"1,710.00 ",WCF Chandlers
South Holland District Council,http://statistics.data.gov.uk/id/local-authority/32UF,Environmental Services,Fuel and Oil,21/07/2022,30018423,"9,727.61 ",C H Jones Ltd
South Holland District Council,http://statistics.data.gov.uk/id/local-authority/32UF,Environmental Services,Fuel and Oil,26/07/2022,30018506,"10,303.33 ",C H Jones Ltd
South Holland District Council,http://statistics.data.gov.uk/id/local-authority/32UF,Environmental Services,Fuel and Oil,28/07/2022,30018679,"9,832.39 ",C H Jones Ltd
South Holland District Council,http://statistics.data.gov.uk/id/local-authority/32UF,Environmental Services,Furniture and Equipment,28/07/2022,30017830,"1,336.60 ",Spaldings (UK) Ltd
South Holland District Council,http://statistics.data.gov.uk/id/local-authority/32UF,Environmental Services,Furniture and Equipment,21/07/2022,30017915,607.28 ,Veolia Es UK Ltd
South Holland District Council,http://statistics.data.gov.uk/id/local-authority/32UF,Environmental Services,Furniture and Equipment,21/07/2022,30018023,"1,746.38 ",Russells Kirbymoorside Ltd
South Holland District Council,http://statistics.data.gov.uk/id/local-authority/32UF,Environmental Services,Furniture and Equipment,28/07/2022,30018024,495.92 ,Russells Kirbymoorside Ltd
South Holland District Council,http://statistics.data.gov.uk/id/local-authority/32UF,Environmental Services,Furniture and Equipment,28/07/2022,30018567,722.92 ,Veolia Es UK Ltd
South Holland District Council,http://statistics.data.gov.uk/id/local-authority/32UF,Environmental Services,Grounds Maintenance Contract (External),02/08/2022,30018474,950.00 ,Greenscape Tree Safe Ltd
South Holland District Council,http://statistics.data.gov.uk/id/local-authority/32UF,Environmental Services,Income Collected on Behalf of External Organisations,07/07/2022,30017792,"7,204.75 ",Broadgate Builders T/A Westlode Car Park
South Holland District Council,http://statistics.data.gov.uk/id/local-authority/32UF,Environmental Services,Insurance Excess (non transport),02/08/2022,30018097,"10,000.00 ",Travelers Insurance Co Ltd
South Holland District Council,http://statistics.data.gov.uk/id/local-authority/32UF,Environmental Services,Materials and Consumables,04/08/2022,30017761,"1,249.95 ",Wybone Ltd
South Holland District Council,http://statistics.data.gov.uk/id/local-authority/32UF,Environmental Services,Materials and Consumables,21/07/2022,30017972,980.12 ,PHS Group
South Holland District Council,http://statistics.data.gov.uk/id/local-authority/32UF,Environmental Services,PCN Income,07/07/2022,30017795,"2,912.14 ",Broadgate Builders T/A Westlode Car Park
South Holland District Council,http://statistics.data.gov.uk/id/local-authority/32UF,Environmental Services,Professional and Contractors Fees,28/07/2022,30017633,950.00 ,Weaar
South Holland District Council,http://statistics.data.gov.uk/id/local-authority/32UF,Environmental Services,Professional and Contractors Fees,28/07/2022,30017634,"1,850.00 ",Weaar
South Holland District Council,http://statistics.data.gov.uk/id/local-authority/32UF,Environmental Services,Professional and Contractors Fees,14/07/2022,30017675,"2,688.40 ",GBSG Ltd
South Holland District Council,http://statistics.data.gov.uk/id/local-authority/32UF,Environmental Services,Professional and Contractors Fees,28/07/2022,30017910,988.22 ,Kings Armoured Security Services Ltd
South Holland District Council,http://statistics.data.gov.uk/id/local-authority/32UF,Environmental Services,Professional and Contractors Fees,21/07/2022,30018410,"1,493.07 ",Lincolnshire County Council
South Holland District Council,http://statistics.data.gov.uk/id/local-authority/32UF,Environmental Services,Staff Training Expenses (Non-Payroll),26/07/2022,30018520,"1,912.50 ",Flagship Trucks Ltd (trading as Flagship Partners)
South Holland District Council,http://statistics.data.gov.uk/id/local-authority/32UF,Environmental Services,Transport Insurance Excess,02/08/2022,30018510,"1,356.36 ",Kents of Spalding Ltd
South Holland District Council,http://statistics.data.gov.uk/id/local-authority/32UF,Environmental Services,Tyres,14/07/2022,30017997,"5,410.95 ",Vaculug Technologies Ltd
South Holland District Council,http://statistics.data.gov.uk/id/local-authority/32UF,Environmental Services,Workshop Parts,28/07/2022,30017760,"1,002.48 ",Fleet Factors Ltd
South Holland District Council,http://statistics.data.gov.uk/id/local-authority/32UF,Environmental Services,Workshop Parts,12/07/2022,30017787,"2,364.76 ",Taylors of Spalding Ltd
South Holland District Council,http://statistics.data.gov.uk/id/local-authority/32UF,Environmental Services,Workshop Parts,07/07/2022,30017788,"1,154.16 ",Dennis Eagle
South Holland District Council,http://statistics.data.gov.uk/id/local-authority/32UF,Environmental Services,Workshop Parts,12/07/2022,30017911,899.05 ,A Culpin & Son Ltd
South Holland District Council,http://statistics.data.gov.uk/id/local-authority/32UF,Environmental Services,Workshop Parts,04/08/2022,30018433,453.56 ,Fleet Factors Ltd
South Holland District Council,http://statistics.data.gov.uk/id/local-authority/32UF,Environmental Services,Workshop Parts,28/07/2022,30018595,"1,177.00 ",EMS-FP and S Ltd
South Holland District Council,http://statistics.data.gov.uk/id/local-authority/32UF,Finance,Agency Staff,05/07/2022,30017683,804.00 ,Pay Stream My Max 3 Limited
South Holland District Council,http://statistics.data.gov.uk/id/local-authority/32UF,Finance,Agency Staff,12/07/2022,30017959,603.00 ,Pay Stream My Max 3 Limited
South Holland District Council,http://statistics.data.gov.uk/id/local-authority/32UF,Finance,Agency Staff,21/07/2022,30018385,502.50 ,Pay Stream My Max 3 Limited
South Holland District Council,http://statistics.data.gov.uk/id/local-authority/32UF,Finance,Agency Staff,02/08/2022,30018665,971.50 ,Pay Stream My Max 3 Limited
South Holland District Council,http://statistics.data.gov.uk/id/local-authority/32UF,Finance,External Audit Fees,28/07/2022,30017722,"45,799.00 ",Ernst and Young LLP
South Holland District Council,http://statistics.data.gov.uk/id/local-authority/32UF,Finance,Insurance,05/07/2022,30017681,"98,755.80 ",The Risk Factor Ltd
South Holland District Council,http://statistics.data.gov.uk/id/local-authority/32UF,Finance,Insurance,21/07/2022,30017853,"2,925.00 ",Wilks Head and Eve LLP
South Holland District Council,http://statistics.data.gov.uk/id/local-authority/32UF,Finance,Legal Fees Non-Routine,12/07/2022,30017951,"11,641.50 ",Wilkin Chapman LLP
South Holland District Council,http://statistics.data.gov.uk/id/local-authority/32UF,Finance,Public Sector Partnership Services,26/07/2022,30018351,"253,689.08 ",Public Sector Partnership Services Ltd
South Holland District Council,http://statistics.data.gov.uk/id/local-authority/32UF,Finance,Shared Management,02/08/2022,30017616,"33,101.61 ",Breckland Council
South Holland District Council,http://statistics.data.gov.uk/id/local-authority/32UF,Finance,Shared Management,02/08/2022,30017617,"1,089.94 ",Breckland Council
South Holland District Council,http://statistics.data.gov.uk/id/local-authority/32UF,Finance,Shared Management,26/07/2022,30017618,"8,951.00 ",Breckland Council
South Holland District Council,http://statistics.data.gov.uk/id/local-authority/32UF,Head of HR & Organisational Development,Other Employee Expenses,01/08/2022,30018565,"17,580.18 ",Aviva Health UK Limited
South Holland District Council,http://statistics.data.gov.uk/id/local-authority/32UF,Head of HR & Organisational Development,Other Income,12/07/2022,30017850,-27.38 ,Unison
South Holland District Council,http://statistics.data.gov.uk/id/local-authority/32UF,Head of ICT and Digital,Computer Software Licence Costs,12/07/2022,30017305,"3,514.69 ",Civica UK Limited
South Holland District Council,http://statistics.data.gov.uk/id/local-authority/32UF,Head of ICT and Digital,Computer Software Licence Costs,28/07/2022,30017745,817.18 ,Softcat Plc
South Holland District Council,http://statistics.data.gov.uk/id/local-authority/32UF,Head of ICT and Digital,Grants and Contributions to Outside Bodies - No Service Received,21/07/2022,30017463,"24,840.00 ",Public Sector Partnership Services Ltd
South Holland District Council,http://statistics.data.gov.uk/id/local-authority/32UF,Head of ICT and Digital,Telephones,05/07/2022,30017493,971.92 ,Public Sector Partnership Services Ltd
South Holland District Council,http://statistics.data.gov.uk/id/local-authority/32UF,Head of ICT and Digital,Telephones,28/07/2022,30017988,"1,959.29 ",Daisy Communications Ltd
South Holland District Council,http://statistics.data.gov.uk/id/local-authority/32UF,Head of Revenues and Benefits,Council Tax,21/07/2022,30018007,"1,000.00 ",Post Office Limited
South Holland District Council,http://statistics.data.gov.uk/id/local-authority/32UF,Head of Revenues and Benefits,Court Costs,12/07/2022,30017854,665.50 ,HMCTS
South Holland District Council,http://statistics.data.gov.uk/id/local-authority/32UF,Health & Communities,Professional and Contractors Fees,05/07/2022,30016913,632.30 ,G2 Recruitment Solutions
South Holland District Council,http://statistics.data.gov.uk/id/local-authority/32UF,Health & Communities,Professional and Contractors Fees,14/07/2022,30017594,975.30 ,G2 Recruitment Solutions
South Holland District Council,http://statistics.data.gov.uk/id/local-authority/32UF,Housing,Bed and Breakfast Accommodation (Homelessness Service),26/07/2022,30018369,500.00 ,Riverside Hotel
South Holland District Council,http://statistics.data.gov.uk/id/local-authority/32UF,Housing,Professional and Contractors Fees,26/07/2022,30018465,250.00 ,Rowan Fire Ltd
South Holland District Council,http://statistics.data.gov.uk/id/local-authority/32UF,Leisure & Culture Communities,Agency Staff,05/07/2022,30017662,366.30 ,Integrity Plus Ltd
South Holland District Council,http://statistics.data.gov.uk/id/local-authority/32UF,Leisure & Culture Communities,Agency Staff,21/07/2022,30017823,610.50 ,Integrity Plus Ltd
South Holland District Council,http://statistics.data.gov.uk/id/local-authority/32UF,Leisure & Culture Communities,Agency Staff,12/07/2022,30017824,944.32 ,Encore Personnel Services Ltd
South Holland District Council,http://statistics.data.gov.uk/id/local-authority/32UF,Leisure & Culture Communities,Agency Staff,12/07/2022,30017825,610.50 ,Integrity Plus Ltd
South Holland District Council,http://statistics.data.gov.uk/id/local-authority/32UF,Leisure & Culture Communities,Agency Staff,19/07/2022,30018301,944.32 ,Encore Personnel Services Ltd
South Holland District Council,http://statistics.data.gov.uk/id/local-authority/32UF,Leisure & Culture Communities,Agency Staff,26/07/2022,30018397,610.50 ,Integrity Plus Ltd
South Holland District Council,http://statistics.data.gov.uk/id/local-authority/32UF,Leisure & Culture Communities,Agency Staff,28/07/2022,30018672,524.62 ,Encore Personnel Services Ltd
South Holland District Council,http://statistics.data.gov.uk/id/local-authority/32UF,Leisure & Culture Communities,Agency Staff,28/07/2022,30018685,610.50 ,Integrity Plus Ltd
South Holland District Council,http://statistics.data.gov.uk/id/local-authority/32UF,Leisure & Culture Communities,Computer Hardware Maintenance,28/07/2022,30017941,"1,321.38 ",Spektrix Ltd
South Holland District Council,http://statistics.data.gov.uk/id/local-authority/32UF,Leisure & Culture Communities,Electricity,21/07/2022,30018333,"3,078.98 ",Total Energies
South Holland District Council,http://statistics.data.gov.uk/id/local-authority/32UF,Leisure & Culture Communities,External Printing and Design Costs,28/07/2022,30018463,770.00 ,Abbey Print Ltd
South Holland District Council,http://statistics.data.gov.uk/id/local-authority/32UF,Leisure & Culture Communities,Furniture and Equipment,05/07/2022,30017657,426.34 ,CPC
South Holland District Council,http://statistics.data.gov.uk/id/local-authority/32UF,Leisure & Culture Communities,Furniture and Equipment,26/07/2022,30017874,"1,103.90 ",Veolia Es UK Ltd
South Holland District Council,http://statistics.data.gov.uk/id/local-authority/32UF,Leisure & Culture Communities,License Fees,14/07/2022,30017963,"2,066.08 ",PPL PRS Ltd
South Holland District Council,http://statistics.data.gov.uk/id/local-authority/32UF,Leisure & Culture Communities,Materials and Consumables,05/07/2022,30017652,"5,091.60 ",Glenside Nurseries Ltd
South Holland District Council,http://statistics.data.gov.uk/id/local-authority/32UF,Leisure & Culture Communities,Other Income,19/07/2022,30017852,"-1,235.32 ",Act II
South Holland District Council,http://statistics.data.gov.uk/id/local-authority/32UF,Leisure & Culture Communities,Other Income,02/08/2022,30018553,"-2,206.60 ",Polka Dot Dance Academy
South Holland District Council,http://statistics.data.gov.uk/id/local-authority/32UF,Leisure & Culture Communities,Payments to Bodies in Respect of Income Collected,19/07/2022,30017852,"3,638.00 ",Act II
South Holland District Council,http://statistics.data.gov.uk/id/local-authority/32UF,Leisure & Culture Communities,Payments to Bodies in Respect of Income Collected,02/08/2022,30018553,"8,986.00 ",Polka Dot Dance Academy
South Holland District Council,http://statistics.data.gov.uk/id/local-authority/32UF,Leisure & Culture Communities,Performers and Entertainers Fees,05/07/2022,30017660,550.00 ,Steves Removals
South Holland District Council,http://statistics.data.gov.uk/id/local-authority/32UF,Leisure & Culture Communities,Performers and Entertainers Fees,02/08/2022,30017998,"4,500.00 ",Clive Conway Celebrity Productions Ltd
South Holland District Council,http://statistics.data.gov.uk/id/local-authority/32UF,Leisure & Culture Communities,Performers and Entertainers Fees,21/07/2022,30018367,"3,746.25 ",Neil O'Brien Entertainment
South Holland District Council,http://statistics.data.gov.uk/id/local-authority/32UF,Leisure & Culture Communities,Professional and Contractors Fees,14/07/2022,30017010,"1,085.00 ",GBSG Ltd
South Holland District Council,http://statistics.data.gov.uk/id/local-authority/32UF,Leisure & Culture Communities,Professional and Contractors Fees,14/07/2022,30017728,"1,050.00 ",GBSG Ltd
South Holland District Council,http://statistics.data.gov.uk/id/local-authority/32UF,Leisure & Culture Communities,Professional and Contractors Fees,21/07/2022,30018353,868.00 ,Agenda Cleaning Services
South Holland District Council,http://statistics.data.gov.uk/id/local-authority/32UF,Leisure & Culture Communities,Professional and Contractors Fees,28/07/2022,30018594,"1,750.00 ",Tooleys Amusements
South Holland District Council,http://statistics.data.gov.uk/id/local-authority/32UF,Leisure & Culture Communities,Water and Sewerage Charges,28/07/2022,30018693,514.55 ,Wave
South Holland District Council,http://statistics.data.gov.uk/id/local-authority/32UF,Planning,Agency - Vacant Post Cover,28/07/2022,30017671,"1,462.50 ",Vivid Resourcing
South Holland District Council,http://statistics.data.gov.uk/id/local-authority/32UF,Planning,Agency - Vacant Post Cover,04/08/2022,30017967,"1,483.65 ",Vivid Resourcing
South Holland District Council,http://statistics.data.gov.uk/id/local-authority/32UF,Planning,Professional and Contractors Fees,21/07/2022,30018343,"1,750.00 ",Mark Simmonds Planning Services Limited
South Holland District Council,http://statistics.data.gov.uk/id/local-authority/32UF,Public Protection,Course Fees,21/07/2022,30017778,575.00 ,Nottingham City Council
South Holland District Council,http://statistics.data.gov.uk/id/local-authority/32UF,Public Protection,Fuel and Oil,12/07/2022,30017836,5.00 ,C H Jones Ltd
South Holland District Council,http://statistics.data.gov.uk/id/local-authority/32UF,Public Protection,Fuel and Oil,21/07/2022,30018423,49.60 ,C H Jones Ltd
South Holland District Council,http://statistics.data.gov.uk/id/local-authority/32UF,Public Protection,Professional and Contractors Fees,28/07/2022,30017807,550.00 ,Pengelly and Mizen Vets
South Holland District Council,http://statistics.data.gov.uk/id/local-authority/32UF,Public Protection,Professional and Contractors Fees,02/08/2022,30017814,"1,392.68 ",The Oyster Partnership Ltd
South Holland District Council,http://statistics.data.gov.uk/id/local-authority/32UF,Public Protection,Rent Payments,28/07/2022,30018376,600.00 ,Monkshouse Primary School
